Cogmind - Beta 15 @@@ ROGUE MODE // 2025.05.29 @ 19:56:23 Player: Xenocore Result: Destroyed by G-47 Trooper with Particle Gun Performance ------------- Evolutions (2) 1000 Regions Visited (3) 600 Robots Destroyed (170) 850 Value Destroyed (4226) 4226 Prototype IDs (9) 180 Alien Tech Used (0) 0 Bonus (855) 855 TOTAL SCORE: 7711 Bonus ------- High Alert Combat Kills 855 Cogmind --------- Core Integrity 0/550 Matter 42/300 Energy 57/100 System Corruption 0% Temperature Warm (186) Movement Core (400) Ox7 Location -8/Materials Parts ------- > --- POWER (1) -------- (None) > --- PROPULSION (4) --- (None) > --- UTILITY (4) ------ Large Storage Unit > --- WEAPON (2) ------- Advanced Beam Cannon > --- INVENTORY (15) --- Light Deuterium Engine Improved Aluminum Leg Improved Aluminum Leg Medium Storage Unit System Shield Shock Rifle Heavy EM Shotgun Pulse Rifle Advanced Beam Cannon Peak State ------------ > --- POWER ------------ Light Deuterium Engine > --- PROPULSION ------- Improved Carbon-fiber Leg Improved Carbon-fiber Leg Improved Carbon-fiber Leg Improved Carbon-fiber Leg > --- UTILITY ---------- Large Storage Unit Improved Medium Armor Plating Improved Medium Armor Plating Field Recycling Unit > --- WEAPON ----------- Pulse Rifle Advanced Beam Cannon > --- INVENTORY -------- Light Deuterium Engine Improved Aluminum Leg Improved Aluminum Leg Carbon-fiber Leg Medium Storage Unit Core Shielding System Shield Shock Rifle Heavy EM Shotgun Advanced Beam Cannon Advanced Beam Cannon Flak Cannon Mini Grenade Launcher [Rating: 39] Favorites ----------- Power Ion Engine Engine Ion Engine Propulsion Improved Aluminum Leg Leg Improved Aluminum Leg Wheel Wheel Utility Medium Storage Unit Device Shield Generator Storage Medium Storage Unit Protection Medium Armor Plating Weapon Assault Cannon Energy Gun Small Laser Energy Cannon Advanced Beam Cannon Ballistic Gun Assault Rifle Ballistic Cannon Assault Cannon Launcher Mini Grenade Launcher Build | -11 -10 -9 -8 ------- Run | Yrd Mat Mat Mat Slots Evolved 4 | . . 2 2 Power . | . . . . Propulsion 2 | . . . 2 Utility 2 | . . 2 . Weapon . | . . . . Parts Attached 86 | 6 28 35 17 Power 11 | 2 2 5 2 Engine 11 | 2 2 5 2 Core . | . . . . Reactor . | . . . . Propulsion 25 | 2 10 7 6 Treads . | . . . . Leg 23 | . 10 7 6 Wheel 2 | 2 . . . Hover . | . . . . Flight . | . . . . Utility 27 | . 9 12 6 Device 10 | . 3 5 2 Storage 10 | . 6 2 2 Processor . | . . . . Hackware . | . . . . Protection 7 | . . 5 2 Artifact . | . . . . Weapon 23 | 2 7 11 3 Energy Gun 5 | . 2 2 1 Energy Cannon 3 | . . 2 1 Ballistic Gun 5 | 2 2 1 . Ballistic Cannon 6 | . 2 3 1 Launcher 4 | . 1 3 . Special Weapon . | . . . . Impact Weapon . | . . . . Slashing Weapon . | . . . . Piercing Weapon . | . . . . Special Melee Weapon . | . . . . Unidentified Prototypes . | . . . . Parts Lost 28 | . 2 11 15 Power 3 | . . 1 2 Propulsion 9 | . 1 4 4 Utility 9 | . . 3 6 Weapon 7 | . 1 3 3 Highest Loss Streak 12 | . 1 8 12 To Critical Strikes . | . . . . Average Backups 8 | 3 7 9 9 Power . | . . . . Propulsion 2 | 1 3 3 1 Utility 1 | . 1 2 2 Weapon 3 | 1 2 3 4 Tool/Special . | . . . . Unused Backups 24 | . 8 7 9 Power 3 | . 1 1 1 Propulsion 5 | . 2 2 1 Utility 9 | . 3 2 4 Weapon 7 | . 2 2 3 Tool/Special . | . . . . Average Slot Usage (%) 97 | . 98 98 94 Engine 11 | . 14 10 8 Leg 25 | . 27 21 32 Device 17 | . 13 21 14 Storage 11 | . 13 11 9 Protection 8 | . . 10 11 Energy Gun 2 | . 4 1 4 Energy Cannon 1 | . . 1 . Ballistic Gun 2 | . 10 . . Ballistic Cannon 12 | . 10 14 10 Launcher 2 | . 1 3 2 Peak Build Rating 39 | 5 10 21 39 Average Rating 16 | 2 7 17 25 On Entrance 8 | . 5 10 19 Naked Turns . | . . . . Heaviest Build 56 | 8 29 47 56 Greatest Support 72 | 20 26 26 72 Greatest Overweight (x) 10 | . 1 3 10 Average Overweight (x) . | . . . . Largest Inventory Capacity 25 | 5 25 10 15 Average Capacity 9 | 5 7 10 11 Most Carried 13 | 5 10 10 13 Average Carried 8 | 3 7 9 9 Final Capacity 15 | 5 10 10 15 Final Carried 10 | 5 10 6 9 Class Distribution -------------------- 83% | Mutant 16% | Scavenger-Mutant Dominant Class ---------------- Scavenger-Mutant | -10/Materials Mutant | -9/Materials Mutant | -8/Materials Resources | -11 -10 -9 -8 ----------- Run | Yrd Mat Mat Mat Matter Collected 3173 | 294 700 1684 495 Remotely . | . . . . Salvage Created 3902 | 60 579 1991 1272 Parts 284 | 3 54 138 89 Haulers Intercepted 8 | . . 5 3 Recyclers Shooed 2 | . . 1 1 Parts Field Recycled 134 | . . 61 73 Retrieved Matter 996 | . . 413 583 Parts Self-Destructed . | . . . . Prevented . | . . . . Kills | -11 -10 -9 -8 ------- Run | Yrd Mat Mat Mat Combat Hostiles Destroyed 104 | 1 18 50 35 Guns 21 | 1 11 4 5 Cannons 39 | . 3 24 12 AOE 44 | . 4 22 18 Classes Destroyed 15 | 2 4 7 2 Worker 18 | 1 2 10 5 Builder 21 | . 3 11 7 Tunneler 2 | . 1 1 . Hauler 8 | . . 5 3 Recycler 4 | . . 2 2 Mechanic 3 | . . 2 1 Operator 3 | . . 2 1 Watcher 7 | . 2 3 2 Swarmer 18 | . 6 9 3 Grunt 58 | 1 12 27 18 Brawler 6 | . . 4 2 Duelist 3 | . . 2 1 Protector 1 | . . . 1 Sentry 16 | . . 8 8 Hunter 2 | . . . 2 Best Kill Streak 20 | 1 5 10 20 Combat Bots Only 12 | 1 3 7 12 Max Kills in Single Turn 5 | 1 2 3 5 Gunslinging 1 | . 1 . . Exploded 3 | . 1 3 3 Melee . | . . . . Uniques/NPCs Destroyed . | . . . . Combat | -11 -10 -9 -8 -------- Run | Yrd Mat Mat Mat Hostile Shots Fired 602 | 10 115 218 259 Missed 169 | 4 28 65 72 Hits 433 | 6 87 153 187 Melee 4 | . . 4 . Projectile 429 | 6 87 149 187 Critical Strikes 13 | . 2 3 8 Actively Blocked 3 | . . 2 1 Damage Taken 5565 | 64 993 1895 2613 Core 1077 | 22 190 313 552 Absorbed by Shields 465 | . . 253 212 Redirected to Shielding 107 | . . 55 52 Regen/Repaired (Parts) 57 | . 57 . . Core Remaining (%) 42 | 91 15 21 . Volleys Fired 422 | 11 78 210 123 Largest 2 | 2 2 2 2 Hottest 136 | 40 60 105 136 Shots Fired 721 | 12 142 341 226 Gun 218 | 12 103 55 48 Cannon 411 | . 26 244 141 Launcher 92 | . 13 42 37 Special . | . . . . Kinetic 463 | 12 125 204 122 Thermal 155 | . 4 84 67 Explosive 92 | . 13 42 37 Electromagnetic 11 | . . 11 . Robot Hit Streak 9 | 6 8 9 9 Robot Miss Streak 13 | 1 8 12 13 Penetration Max . | . . . . Secondary Targets 2 | . 2 . . Max Gunslinging Chain 1 | . 1 . . Shots Hit Robots 364 | 10 65 167 122 Core Hits 269 | 3 42 117 107 Critical Kills 1 | . 1 . . Critical Parts Destroyed . | . . . . Critical Strikes 17 | . 1 9 7 Burn 6 | . . 4 2 Destroy 1 | . 1 . . Blast 10 | . . 5 5 Melee Attacks . | . . . . Impact . | . . . . Slashing . | . . . . Piercing . | . . . . Sneak Attacks . | . . . . Combat Hostiles . | . . . . Follow-up Attacks . | . . . . Damage Inflicted 11756 | 116 1245 5456 4939 Guns 1721 | 116 646 431 528 Cannons 4418 | . 118 2718 1582 Explosions 5609 | . 473 2307 2829 Melee . | . . . . Ramming 8 | . 8 . . Kinetic 4386 | 116 752 2143 1375 Thermal 1604 | . 12 857 735 Explosive 5609 | . 473 2307 2829 Electromagnetic 149 | . . 149 . Impact . | . . . . Slashing . | . . . . Piercing . | . . . . Highest Corruption 4 | . . 4 . Average Corruption 3 | . . 3 . Corruption Purged . | . . . . Corruption Blocked . | . . . . Effects 29 | . . 29 . Message Errors 5 | . . 5 . Matter Fused 8 | . . 8 . Heat Flow Errors 6 | . . 6 . Energy Discharges 1 | . . 1 . Parts Fused 1 | . . 1 . Data Loss (minor) 3 | . . 3 . Misfires 5 | . . 5 . Overload Shots . | . . . . Overflow Damage 177 | . 14 79 84 Projectiles 69 | . . 55 14 Explosions 108 | . 14 24 70 Melee . | . . . . Knockbacks 48 | . 2 19 27 Impact 1 | . 1 . . Kinetic 45 | . 1 18 26 Secondary 2 | . . 1 1 Self-Inflicted Damage 540 | . 51 264 225 Shots 24 | . 3 12 9 Rammed . | . . . . Targets Rammed 1 | . 1 . . Kicked 1 | . 1 . . Crushed . | . . . . Highest Temperature 486 | 6 26 486 471 Average Temperature 120 | 6 8 116 135 Received Heat Transfer 1962 | 36 369 566 991 Effects 34 | . . 19 15 Shutdowns 11 | . . 6 5 Energy Bleed 7 | . . 5 2 Interference 6 | . . 4 2 Short Circuit 2 | . . 1 1 Damage (minor) 6 | . . 3 3 Damage (major) 2 | . . . 2 Siege Activations . | . . . . Martial Activations . | . . . . Shielding Activations . | . . . . Robots Disrupted . | . . . . Combat Hostiles . | . . . . Robots Corrupted . | . . . . Combat Hostiles . | . . . . Parts Fried . | . . . . Impact Corruptions . | . . . . Robots Melted . | . . . . Combat Hostiles . | . . . . Parts Melted 5 | . . 5 . Heat Transferred 3791 | . 25 2101 1665 Parts Sabotaged . | . . . . Parts Stolen . | . . . . Parts Stripped . | . . . . Power Chain Reactions . | . . . . Alert | -11 -10 -9 -8 ------- Run | Yrd Mat Mat Mat Maximum Alert Level 4 | . . 4 3 Low Security (%) 39 | 100 100 23 . Level 1 8 | . . 16 . Level 2 32 | . . 30 79 Level 3 17 | . . 26 20 Level 4 1 | . . 3 . Level 5 . | . . . . High Security . | . . . . Max Security . | . . . . Sterilizations 1 | . . 1 . Peak Influence 1175 | 20 133 1175 1032 Initial 495 | . 6 50 495 Average 406 | 4 38 514 624 Influence Increases 3780 | 25 592 1964 1199 Destroy 0b10 Robot/C 2060 | 20 360 1000 680 Destroy 0b10 Robot/NC 335 | 5 40 180 110 Destroy Leader 530 | . 84 256 190 Successful Hack 29 | . 2 26 1 Disable Machine 225 | . 30 150 45 Destroy Structure 541 | . 46 322 173 Lose Combat Pursuer 60 | . 30 30 . Influence Decreases 2782 | 15 481 911 1375 Entered New Map 754 | . 4 71 679 Time Decay 1748 | 15 457 730 546 Lost Part 280 | . 20 110 150 Squads Dispatched 21 | . 3 11 7 Investigation 5 | . 1 3 1 Extermination . | . . . . Reinforcement 13 | . 2 6 5 Assault 3 | . . 2 1 Garrison . | . . . . Intercept . | . . . . Searches Triggered . | . . . . Construction Impeded 6 | . . 4 2 Haulers Reinforced . | . . . . Active Scanning Responses . | . . . . Cargo Convoy Interrupts . | . . . . Stealth | -11 -10 -9 -8 --------- Run | Yrd Mat Mat Mat Distress Signals 9 | . 1 6 2 Communications Jammed . | . . . . Distress Signals . | . . . . Times Spotted 166 | 1 33 78 54 Peak Tracking Total 9 | 1 4 6 9 Tactical Retreats 3 | . 1 2 . Traps | -11 -10 -9 -8 ------- Run | Yrd Mat Mat Mat Traps Triggered 9 | . 2 6 1 Indirectly . | . . . . Trap Hack Attempts . | . . . . Triggered . | . . . . Disarmed . | . . . . Reprogrammed . | . . . . Reused . | . . . . Traps Extracted . | . . . . Installed . | . . . . Triggered . | . . . . Machines | -11 -10 -9 -8 ---------- Run | Yrd Mat Mat Mat Machines Disabled 16 | . 2 11 3 Max in Single Turn 2 | . 1 2 1 Machines Repaired . | . . . . Machines Dismantled . | . . . . Machines Sabotaged . | . . . . Overloaded Fab Kills . | . . . . Hacking | -11 -10 -9 -8 --------- Run | Yrd Mat Mat Mat Machines Accessed 12 | . 3 7 2 Terminals 8 | . 2 5 1 Fabricators . | . . . . Repair Stations 2 | . 1 1 . Recycling Units . | . . . . Scanalyzers 2 | . . 1 1 Garrison Access . | . . . . Total Hacks 32 | . 8 19 5 Successful 24 | . 7 13 4 Failed 8 | . 1 6 1 Catastrophic 1 | . . . 1 Database Lockouts . | . . . . Manual 2 | . . 2 . Terminals 16 | . 5 9 2 Fabricators . | . . . . Repair Stations 5 | . 3 2 . Recycling Units . | . . . . Scanalyzers 11 | . . 8 3 Garrison Access . | . . . . Terminal Hacks 12 | . 5 6 1 Record 6 | . 2 3 1 Prototype ID Bank 3 | . 1 2 . Maintenance Status 1 | . . 1 . Hauler Manifests 1 | . 1 . . Zone Layout 1 | . 1 . . Fabricator Hacks . | . . . . Repair Station Hacks 3 | . 2 1 . Scan Component 2 | . 1 1 . Repair 1 | . 1 . . Recycling Unit Hacks . | . . . . Scanalyzer 9 | . . 6 3 Insert Component 5 | . . 3 2 Analyze 4 | . . 3 1 Garrison Access Hacks . | . . . . Unauthorized Hacks . | . . . . Terminals . | . . . . Fabricators . | . . . . Repair Stations . | . . . . Recycling Units . | . . . . Scanalyzers . | . . . . Garrison Access . | . . . . Data Cores Recovered . | . . . . Used . | . . . . Hacking Detections 5 | . 1 3 1 Full Trace Events . | . . . . Feedback Events . | . . . . Feedback Blocked . | . . . . Robot Schematics Acquired . | . . . . Robots Built . | . . . . Authchips . | . . . . Time . | . . . . Total Robot Build Rating . | . . . . Part Schematics Acquired 3 | . . 2 1 Parts Built . | . . . . Authchips . | . . . . Time . | . . . . Total Part Build Rating . | . . . . Parts Repaired 1 | . 1 . . Time 26 | . 26 . . Parts Recycled . | . . . . Recycled Matter . | . . . . Retrieved Matter . | . . . . Retrieved Components . | . . . . Parts Scanalyzed 3 | . . 2 1 Part Schematics Acquired 3 | . . 2 1 Parts Damaged . | . . . . Bothacking | -11 -10 -9 -8 ------------ Run | Yrd Mat Mat Mat Used RIF Installer . | . . . . Robots Hacked . | . . . . Non-combat . | . . . . Combat . | . . . . Robot Hacks Applied . | . . . . Relay Couplers Released . | . . . . Fabnet Peak Effective % . | . . . . Robots Rewired . | . . . . Allies Hacked . | . . . . Hacks Repelled . | . . . . Allies | -11 -10 -9 -8 -------- Run | Yrd Mat Mat Mat Total Allies . | . . . . Largest Group . | . . . . Highest-Rated Group . | . . . . Highest-Rated Ally . | . . . . Total Orders . | . . . . Ally Attacks . | . . . . Total Damage . | . . . . Kills . | . . . . Allies Corrupted . | . . . . Allies Melted . | . . . . Intel | -11 -10 -9 -8 ------- Run | Yrd Mat Mat Mat Active Infowar (turns) 3289 | . 1722 1567 . Sensors 497 | . . 497 . Structural 3289 | . 1722 1567 . Robot Analysis Total . | . . . . Derelict Logs Recovered . | . . . . Drone Launches . | . . . . Drone Recoveries . | . . . . Exploration | -11 -10 -9 -8 ------------- Run | Yrd Mat Mat Mat Turns Passed 7135 | 100 1877 3583 1575 Spaces Moved 3654 | 95 1112 1632 815 Core 66 | 56 . 7 3 Treads . | . . . . Legs 3523 | . 1086 1625 812 Wheels 65 | 39 26 . . Hover . | . . . . Flight . | . . . . Fastest Speed 50 | 50 80 120 120 Average Speed 154 | 62 141 178 135 Slowest Speed 550 | 80 190 330 550 Overloaded Moves . | . . . . Propulsion Burnouts . | . . . . Robots Hopped . | . . . . Potential Cave-ins 3 | . . . 3 Cave-ins Triggered . | . . . . Exploration Rate (%) 65 | 7 97 92 67 Regions Visited 3 Branch Regions . Pre-discovered Areas . | . . . . Known Exits Taken . | . . . . Unknown Exits Taken 3 | 1 1 1 . Scrap Searched . | . . . . Spaces Dug 16 | . 3 . 13 Terrain Destroyed 611 | . 46 364 201 Melee . | . . . . Projectile 75 | . . 42 33 AOE 536 | . 46 322 168 Terrain Rammed . | . . . . Walls Destroyed . | . . . . Machines Disabled . | . . . . Actions | -11 -10 -9 -8 --------- Run | Yrd Mat Mat Mat Total 4439 | 125 1294 1968 1052 Wait 60 | . 1 9 50 Move 3651 | 94 1111 1631 815 Hop . | . . . . Pick Up 95 | 12 33 30 20 Fast Attach 4 | . 2 1 1 Attach 42 | 5 12 17 8 Detach 2 | . 1 1 . Swap 80 | 1 20 37 22 Drop 82 | 2 35 32 13 Fire 422 | 11 78 210 123 Melee . | . . . . Ram . | . . . . Kick 1 | . 1 . . Crush . | . . . . Escape Stasis . | . . . . Rewire . | . . . . Trap . | . . . . Miscellaneous . | . . . . Route ------- -11/Scrapyard -10/Materials (discovered 4 exits: *Mat x3 / [*Min]) -9/Materials (discovered 5 exits: *Mat x3 / [*Min x2]) -8/Materials (discovered 2 exits: [*Fac x2]) History --------- Turn | Location | Event 2 | -11/Scrapyard | Met Revision 17 59 | -11/Scrapyard | Discovered new exit (range 8) 101 | -11/Scrapyard | Entered Materials 315 | -10/Materials | Build established: Mutant 430 | -10/Materials | Discovered new exit (range 15) 439 | -10/Materials | Discovered new exit (range 14) 557 | -10/Materials | Core integrity fell below 50% 674 | -10/Materials | Repaired Grenade Launcher? 814 | -10/Materials | Discovered new exit (range 13) 1107 | -10/Materials | Build established: Scavenger-Mutant 1884 | -10/Materials | Core integrity fell below 20% 1935 | -10/Materials | Discovered new exit (range 7) 1978 | -10/Materials | Entered another Materials area 1978 | -9/Materials | Evolved 2 slots: Utility x2 2259 | -9/Materials | Build established: Mutant 2413 | -9/Materials | Discovered new exit (range 15) 2480 | -9/Materials | Core integrity fell below 50% 2505 | -9/Materials | Destroyed 7 combat bots 2509 | -9/Materials | Lost 8 parts (1p2n2u3w) 3266 | -9/Materials | Discovered new exit (range 7) 3933 | -9/Materials | Discovered new exit (range 16) 4378 | -9/Materials | First assault squad dispatched 5133 | -9/Materials | Discovered new exit (range 10) 5357 | -9/Materials | Discovered new exit (range 14) 5517 | -9/Materials | Sterilization system engaged 5517 | -9/Materials | Non-combat units ordered to evacuate 5561 | -9/Materials | Entered another Materials area 5561 | -8/Materials | Evolved 2 slots: Propulsion x2 5961 | -8/Materials | First assault squad dispatched 6215 | -8/Materials | Discovered new exit (range 10) 6534 | -8/Materials | Discovered new exit (range 14) 7094 | -8/Materials | Core integrity fell below 50% 7124 | -8/Materials | Core integrity fell below 20% 7128 | -8/Materials | Destroyed 12 combat bots 7136 | -8/Materials | Destroyed by G-47 Trooper with Particle Gun Last Messages --------------- 07127_ U-05 Engineer lays Concrete. 07128_ U-05 Engineer builds a Wall. 07129_ The unstable cave ceiling collapses. 07129_ U-05 Engineer lays Concrete. 07129_ K-01 Serf collects debris. 07131_ U-05 Engineer lays Concrete. 07132_ Adv. Beam Cannon destroyed. 07132_ U-05 Engineer lays Concrete. 07132_ K-01 Serf collects debris. 07133_ U-05 Engineer lays Concrete. 07133_ K-01 Serf collects debris. 07133_ U-05 Engineer lays Concrete. 07134_ The unstable cave ceiling collapses. 07134_ U-05 Engineer builds a Wall. 07135_ U-05 Engineer lays Concrete. 07135_ Core Shielding destroyed. 07135_ K-01 Serf collects debris. 07136_ U-05 Engineer lays Concrete. [Achievement: First Step to Greatness] [Achievement: 5k Club] Map ----- +----------------------------------------------------+ | ??????????????????# # #????? ????# * | | ??????????????????#! !# #????? ????# ### | | ??????????????????? ???? # #??????????# ??? | | ???????????????????###?????## ??????????# ???? | | ????????????????????????????# #??????????? ???? | | ????????????????????????????# #????????????????? | | ????????????????????????????# #????????????????? | | ????????????????????????????? #????????????????? | | ????????????????????????????? #????????????????? | | ????????????????????????????? ????????????????? | | ????????????????????????????? ????????????????? | | ????????????????????????????? ?????????????????? | | ?????????????????????????????????????????????????? | | ????????????????###??????????????????????????????? | | ????????????????# ??????????????????????????????? | | ????????????????# ??????????????????????????????? | | ????????????? ??# ##????????????????????????????? | | ?????????????" ?# ????????????????????????????? | | ????????????"? # #######??????????????????????? | | ????????????"" # #??????????????????????? | | ???????????"" #*""" #????????#?????????????? | | ??????????? # k R #?????? #?????????????? | | ????????? # "" #???? #?????????????? | | ?????######+# #?? #?????????????? | | ????? !% #k = # #?????????????? | | ?????????# = [ %= @s [[ #?????????????? | | #####????# u # [ s [ #?????????????? | | #????##### g g s #?????????????? | | #???????### g # #?????????????? | | #????????# # #### #####?????????????? | | #????????## # #????#?????????????????? | | ############# # ###??????????????????????? | | # #?# u ?????????????????????????? | | # """ #?# # ?????????????????????????? | | +#### """ #?## ?????????????????????????? | | = # """ #??# ####?????????????????????????? | | =% + #??# #????????????????????????????? | | ! # """ #?## ##???????????????????????????? | | ### # """ #?# ###########?????????????????? | | ??# # """ #?# "" #?????????????????? | | ??# # #?# T #?????????????????? | | ??# ##########?# #?????????????????? | | ??# #??????????# ####### #?????????????????? | | ??#%#??????????###+#######?# #?????????????????? | | ??# #??????????# # #?????????????????? | | ??# #??????????# """ """ # #?????????????????? | | ?## ##?????????# """ """ # #?????????????????? | | ?# ########### """ """ + #?????????????????? | | ?# ! % +% # #?????????????????? | | ?# ########### # +?????????????????? | +----------------------------------------------------+ Best States ------------- Heat Dissipation 41 Energy Generation 14 Energy Capacity 350 Matter Stores 318 Matter Capacity 450 Sight Range 16 Robot Scan Range 14 Terrain Scan Density 10 Armor Coverage 450 Core Shielding 20 Propulsion Shielding 33 Evasion (%) 55 Item Schematics ----------------- Mni. Grenade Launcher | -9/Materials | Scanalyzed Imp. Aluminum Leg | -9/Materials | Scanalyzed Assault Cannon | -8/Materials | Scanalyzed Robot Schematics ------------------ None Fabricated ------------ Nothing Repaired ---------- Grenade Launcher | 5% | -10/Materials Alien Tech Used ----------------- None Achievements -------------- 5k Club First Step to Greatness Let's See Who's Tougher Loot Pinata Novice Programmer Oops Part-time Mechanic Remodeling Safety First Shopping List Significant Disruption Storm Trooper Uninvited Guest Challenges ------------ None Game ------ Seed AutogunFlightCharger Manual? 0 Play Time 02:17:23 Cumulative 2.2 hours Start 2025.05.29 @ 17:24:53 End 2025.05.29 @ 19:56:23 Sessions 1 Manual Loads 0 Difficulty Rogue Special Mode None Game No. 1 Rogue 1 Adventurer 0 Explorer 0 Win Type - Total 0 Types 0/0/0/0/0/0/0/0/0/0 Lore% 0 Gallery% 3 Achievement% 5 Wizard Run 0 Options --------- Layout 0 ASCII 0 Keyboard 0 Movement Mouse Keybinds 0 Fullscreen 1 Font 18/SmallcapsGlow Map View 76x50 Zoom Use 0% Tactical HUD 1 Map Filters NONE Filters NONE Steam X RUN: 09e96939-2f13-477f-a193-5fc37e9b0889